bitfinex-derivatives/quotes_ETHF0:USTF0_20250910
["timestamp","ask_amount","ask_price","bid_price","bid_amount"]
[1757508896275,3.2078,4366.7,4366.6,1.0351]
[1757508897076,3.2078,4367.3,4367.2,0.5892]
[1757508897278,3.2078,4367.3,4367.2,1.0351]
[1757508897679,3.2078,4367.8,4367.7,0.5892]
[1757508897875,3.2078,4367.8,4367.7,1.0351]
[1757508898080,3.4508,4367.8,4367.7,1.0351]
[1757508898479,3.2078,4367.8,4367.7,1.0351]
[1757508898680,0.243,4368.2,4368.1,1.0351]
[1757508899977,3.2078,4368.3,4368.2,0.4459]
[1757508900283,3.2078,4368.3,4368.2,1.0351]
[1757508900681,0.243,4368.7,4368.2,1.44713]
[1757508900882,0.243,4368.7,4368.6,1.0351]
[1757508902586,3.2078,4368.8,4368.7,0.4459]
[1757508902775,3.2078,4368.8,4368.7,1.0351]
[1757508907088,0.17,4368.9,4368.8,1.44708]
[1757508907779,0.17,4368.9,4368.8,1.0351]
[1757508910593,0.17,4368.9,4368.8,0.4459]
[1757508911185,0.17,4368.9,4368.8,0.7321]
[1757508911891,0.17,4368.9,4368.8,0.4459]
[1757508913290,4.413,4368.9,4368.8,0.4459]
[1757508914404,4.413,4368.9,4368.8,0.7321]
[1757508915400,0.17,4368.9,4368.8,1.0009]
[1757508917697,0.17,4368.9,4368.8,0.7321]
[1757508917902,0.17,4368.9,4368.8,0.4459]
[1757508918105,0.17,4368.9,4368.8,0.7216]
[1757508918400,0.17,4368.9,4368.8,0.9904]
[1757508921398,0.17,4368.9,4368.8,1.40238]
[1757508921590,0.17,4368.9,4368.8,0.9904]
[1757508922300,0.17,4368.9,4368.8,1.40238]
[1757508922501,0.17,4368.9,4368.8,0.9904]
[1757508924409,3.2078,4369.8,4369.7,0.9338]
[1757508925509,3.2078,4369.8,4369.7,0.665]
[1757508925708,3.2078,4369.8,4369.7,0.3893]
[1757508926310,3.4498,4369.8,4369.7,0.665]
[1757508927704,7.4498,4369.8,4369.7,0.3893]
[1757508928617,7.4498,4369.8,4369.7,0.665]
[1757508929303,3.4498,4369.8,4369.7,1.21330565]
[1757508929704,3.2078,4369.8,4369.7,1.21330565]
[1757508931514,3.2078,4370.3,4370.1,0.3893]
[1757508931709,3.2078,4370.3,4370.2,1.21330565]
[1757508932406,3.4498,4370.3,4370.2,1.21330565]
[1757508933008,3.2078,4370.3,4370.2,1.21330565]
[1757508934612,3.2078,4370.3,4370.2,0.66880565]
[1757508934813,3.2078,4370.3,4370.2,0.94450565]
[1757508935212,3.2078,4370.3,4370.2,1.21330565]
[1757508935414,3.2078,4370.8,4370.5,0.155]
[1757508935612,0.242,4370.7,4370.6,0.94450565]
[1757508935820,3.2078,4370.8,4370.7,0.3893]
[1757508936019,3.4498,4370.8,4370.7,1.21330565]
[1757508936219,3.2078,4370.8,4370.7,1.21330565]
[1757508937717,3.2078,4370.8,4370.7,0.66880565]
[1757508938122,3.2078,4370.8,4370.7,0.94450565]
[1757508938123,3.4498,4370.8,4370.7,0.94450565]
[1757508938316,3.4498,4370.8,4370.7,1.21330565]
[1757508938722,3.4498,4370.8,4370.7,0.94450565]
[1757508939622,3.2078,4370.8,4370.7,0.94450565]
[1757508939816,3.4498,4370.8,4370.7,0.94450565]
[1757508940017,3.4498,4370.8,4370.7,1.21330565]
[1757508941721,3.2078,4370.8,4370.7,1.21330565]
[1757508943519,3.2078,4370.8,4370.7,0.66880565]
[1757508944024,3.4498,4370.8,4370.7,0.66880565]
[1757508944419,3.2078,4370.8,4370.7,1.18090565]
[1757508944619,3.4498,4370.8,4370.7,1.18090565]
[1757508946219,3.4498,4370.8,4370.7,1.18011141]
[1757508948525,3.4498,4370.8,4370.7,0.94371141]
[1757508948720,3.4498,4370.8,4370.7,0.66801141]
[1757508949920,3.4498,4370.8,4370.7,0.66813056]
[1757508951428,3.4498,4370.8,4370.7,0.90633056]
[1757508951927,3.4498,4370.8,4370.1,0.3538]
[1757508951928,7.4498,4370.8,4370.1,0.3538]
[1757508952129,3.2078,4370.2,4370.1,0.592]
[1757508952333,3.4498,4370.2,4370.1,0.8284]
[1757508952924,3.2078,4370.2,4370.1,0.8284]
[1757508953127,3.4498,4370.2,4370.1,0.592]
[1757508953428,3.4498,4370.2,4370.1,0.3538]
[1757508953732,4.00427697,4370.2,4370.1,0.3538]
[1757508958630,3.76227697,4370.2,4370.1,0.8284]
[1757508958835,3.2078,4370.2,4370.1,0.8284]
[1757508959634,3.4498,4370.2,4370.1,0.8284]
[1757508965529,3.4498,4370.2,4369.5,0.155]
[1757508965530,7.4498,4370.2,4369.5,0.155]
[1757508965734,7.4498,4370.2,4369.0,0.155]
[1757508965735,3.2078,4369.6,4369.0,0.155]
[1757508965938,3.2078,4369.1,4369.0,0.155]
[1757508966132,3.4488,4369.1,4369.0,0.155]
[1757508966932,4.00524192,4369.1,4369.0,0.155]
[1757508967137,3.4488,4369.1,4369.0,0.155]
[1757508967537,4.00490709,4369.1,4369.0,0.155]
[1757508967740,3.4488,4369.1,4369.0,0.5088]
[1757508968242,3.4488,4369.1,4368.5,0.1444]
[1757508968243,7.4488,4369.1,4368.5,0.1444]
[1757508968536,7.4488,4369.1,4368.0,0.1444]
[1757508968537,3.2078,4368.6,4368.1,0.3538]
[1757508968737,0.241,4368.5,4368.0,0.4982]
[1757508968941,3.2078,4368.1,4367.7,0.3538]
[1757508969242,0.241,4368.0,4367.7,0.3538]
[1757508969639,0.241,4368.0,4367.5,0.1444]
[1757508969947,3.2078,4367.6,4367.5,0.1444]
[1757508970237,3.4488,4367.6,4367.5,0.4982]
[1757508970745,3.2078,4367.6,4367.5,0.7364]
[1757508970936,3.4488,4367.6,4367.5,0.7364]
[1757508972135,3.4488,4367.6,4367.5,0.9728]
[1757508973145,3.2078,4367.6,4367.5,0.9728]
[1757508973341,3.4488,4367.6,4367.5,0.9728]
[1757508973845,3.2078,4367.6,4367.5,0.9728]
[1757508974046,3.4488,4367.6,4367.5,0.9728]
[1757508975146,3.2078,4367.6,4367.5,0.9728]
[1757508975345,3.4488,4367.6,4367.5,0.4982]
[1757508975546,3.4488,4367.6,4367.5,0.1444]
[1757508976344,3.4488,4367.6,4367.5,0.4806]
[1757508977141,3.4488,4367.6,4367.1,0.3362]
[1757508977339,3.67777,4367.6,4366.7,0.3362]
[1757508977646,3.2078,4366.8,4366.7,0.3362]
[1757508977943,3.4488,4366.8,4366.7,0.3362]
[1757508979843,3.2078,4366.8,4366.7,0.8076]
[1757508980045,3.4488,4366.8,4366.7,0.8076]
[1757508981541,3.4488,4366.8,4366.7,0.3362]
[1757508982144,3.2078,4367.3,4367.2,0.4714]
[1757508982336,3.2078,4367.3,4367.2,0.8076]
[1757508990149,3.2078,4367.3,4367.2,0.5793]
[1757508990350,7.67778001,4367.3,4365.6,0.5645]
[1757508990648,3.2078,4366.1,4366.0,0.4721]
[1757508990950,3.4488,4366.1,4366.0,0.4721]
[1757508991146,3.4488,4366.1,4366.0,0.7004]
[1757508992345,3.4488,4366.1,4366.0,0.9435]
[1757508993650,3.4488,4366.1,4366.0,0.4721]
[1757508996053,3.4488,4366.1,4366.0,0.7004]
[1757508996456,3.2078,4366.1,4366.0,0.1359]
[1757508996648,3.2078,4366.1,4365.0,3.3437]
[1757508996649,3.4488,4366.1,4365.0,3.3437]
[1757508996855,0.241,4366.1,4366.0,0.4721]
[1757508997054,3.4488,4366.1,4366.0,0.1359]
[1757508997446,3.4488,4366.1,4366.0,0.4721]
[1757508997652,3.4488,4366.1,4366.0,0.9435]
[1757508998154,3.4488,4366.1,4366.0,0.7004]
[1757508998853,3.4488,4366.1,4366.0,0.4721]
[1757508999157,4.00519746,4366.1,4365.6,0.3362]
[1757508999356,0.55639746,4366.0,4365.6,0.3362]
[1757508999554,3.2078,4366.1,4366.0,0.1359]
[1757508999760,4.00518024,4366.1,4366.0,0.7004]
[1757509000264,4.00509604,4366.1,4366.0,0.7004]
[1757509000555,3.4488,4366.1,4366.0,0.4721]
[1757509000751,4.00508989,4366.1,4366.0,0.4721]
[1757509001557,3.4488,4366.1,4366.0,0.7004]
[1757509001857,3.2078,4366.1,4366.0,0.7004]
[1757509002050,3.4488,4366.1,4366.0,0.7004]
[1757509002448,3.2078,4366.1,4366.0,0.7004]
[1757509002647,3.4488,4366.1,4366.0,0.7004]
[1757509005266,4.00512827,4366.1,4366.0,0.4721]
[1757509006361,4.00512827,4366.1,4366.0,0.1359]
[1757509006661,4.00512827,4366.1,4366.0,0.4412]
[1757509010365,3.4488,4366.1,4366.0,0.4412]
[1757509010764,3.4488,4366.1,4366.0,0.6524]
[1757509011060,3.4488,4366.1,4366.0,0.8751]
[1757509011259,51.382,4367.6,4366.1,0.3053]
[1757509011260,3.2078,4366.6,4366.1,0.3053]
[1757509011451,3.2078,4366.6,4366.5,0.8693]
[1757509012462,3.2078,4366.6,4366.5,4.8693]
[1757509014766,3.2078,4366.6,4366.5,0.8693]
[1757509014961,0.241,4367.0,4366.7,0.3053]
[1757509015162,3.2078,4367.2,4367.1,0.3053]
[1757509015462,3.4488,4367.2,4367.1,0.5165]
[1757509015663,3.2078,4367.2,4367.1,0.5165]
[1757509015864,3.4488,4367.2,4367.1,0.5165]
[1757509016260,3.2078,4367.2,4367.1,0.7392]
[1757509016662,3.2078,4367.2,4367.1,0.3053]
[1757509016866,3.4488,4367.2,4367.1,0.3053]
[1757509018869,3.4488,4367.2,4367.0,0.1301]
[1757509019459,3.4488,4367.2,4367.0,0.4354]
[1757509019869,3.4488,4367.2,4366.6,0.3053]
[1757509020069,3.2078,4366.7,4366.6,0.3053]
[1757509020272,3.4488,4366.7,4366.6,0.3053]
[1757509020672,3.4488,4366.7,4366.5,0.1301]
[1757509020673,7.4488,4366.7,4366.5,0.1301]
[1757509020874,7.4488,4366.7,4366.6,0.3053]
[1757509021462,7.4488,4366.7,4366.2,0.3053]
[1757509021774,0.55704155,4366.6,4365.8,0.3053]
[1757509022072,3.2078,4366.1,4366.0,0.4412]
[1757509022267,3.4488,4366.1,4366.0,0.4412]
[1757509023172,3.4488,4366.1,4366.0,0.1359]
[1757509023567,3.4488,4366.1,4366.0,0.6524]
[1757509023766,3.4488,4366.1,4366.0,0.4412]
[1757509024274,3.4488,4366.1,4366.0,0.8751]
[1757509025566,3.4488,4366.1,4366.0,0.4412]
[1757509025767,3.4488,4366.1,4366.0,0.1359]
[1757509026766,3.4488,4366.1,4366.0,0.4412]
[1757509031583,3.4488,4366.1,4366.0,0.6524]
[1757509031778,3.2078,4366.1,4366.0,0.8751]
[1757509032082,3.4478,4366.1,4366.0,0.8751]
[1757509032970,3.2078,4366.1,4366.0,0.8751]
[1757509033185,3.4478,4366.1,4366.0,0.8751]
[1757509038879,3.2078,4366.1,4366.0,0.8751]
[1757509039187,3.4478,4366.1,4366.0,0.8751]
[1757509039784,3.4478,4366.1,4366.0,0.4412]
[1757509040584,3.4478,4366.1,4366.0,0.6486]
[1757509040885,3.4478,4366.1,4366.0,0.855]
[1757509041582,3.2078,4366.1,4366.0,0.855]
[1757509042787,0.24,4366.9,4366.8,0.4138]
[1757509042987,0.24,4366.9,4366.8,0.7356]
[1757509044883,3.2078,4367.2,4367.0,0.3292]
[1757509045083,3.2078,4367.2,4367.1,0.5292]
[1757509045279,3.4478,4367.2,4367.1,0.5292]
[1757509047484,3.2078,4367.2,4367.1,0.7356]
[1757509047689,3.4478,4367.2,4367.1,0.7356]
[1757509050487,3.2078,4367.2,4367.1,0.7356]
[1757509050689,3.4478,4367.2,4367.1,0.7356]
[1757509050884,3.2078,4367.2,4367.1,0.7356]
[1757509052893,0.24,4367.3,4367.2,0.3218]
[1757509053087,0.24,4367.3,4367.2,0.7356]
[1757509053487,3.2078,4367.9,4367.2,0.7356]
[1757509053689,3.2078,4367.9,4367.8,0.7356]
[1757509053990,3.4478,4367.9,4367.8,0.7356]
[1757509054592,3.2078,4368.5,4368.0,0.1218]
[1757509054787,0.24,4368.3,4368.2,0.7356]
[1757509060586,0.24,4368.3,4368.2,0.3218]
[1757509060791,0.24,4368.3,4368.0,0.1218]
[1757509060792,4.24,4368.3,4368.1,0.3218]
[1757509060986,4.46893,4368.3,4368.0,0.1218]
[1757509061182,4.46893,4368.3,4367.8,0.3218]
[1757509061387,3.2078,4367.9,4367.8,0.3218]
[1757509061695,3.4478,4367.9,4367.8,0.3218]
[1757509066197,3.4478,4367.9,4367.8,0.5264]
[1757509066998,3.4478,4367.9,4367.8,0.3218]
[1757509069693,3.4478,4367.9,4367.8,0.5264]
[1757509070697,3.4478,4367.9,4367.8,0.3218]
[1757509072001,3.4478,4367.9,4367.8,0.5264]
[1757509073393,3.4478,4367.9,4367.8,0.7251]
[1757509080405,4.00721929,4367.9,4367.8,0.7251]
[1757509081106,3.76721929,4367.9,4367.8,0.7251]
[1757509081299,4.00721929,4367.9,4367.8,0.7251]
[1757509081496,3.4478,4367.9,4367.8,0.7251]
[1757509081897,3.2078,4367.9,4367.8,0.7251]
[1757509084308,3.2078,4367.9,4367.8,4.7251]
[1757509086203,3.2078,4368.7,4367.8,4.7251]
[1757509086402,0.79844366,4368.6,4368.5,0.6257]
[1757509086598,0.79844366,4368.6,4368.5,0.8303]
[1757509088912,0.79844366,4368.6,4368.5,0.6316]
[1757509089109,0.79844366,4368.6,4368.5,0.427]
[1757509089508,0.79844366,4368.6,4368.5,0.6316]
[1757509090210,0.79844366,4368.6,4368.0,0.1223]
[1757509090410,3.2078,4368.2,4368.1,0.3047]
[1757509090605,4.00624366,4368.2,4367.5,0.1218]
[1757509090810,3.2078,4367.7,4367.3,0.3047]
[1757509091012,0.79844366,4367.6,4367.3,0.3047]
[1757509091210,0.55944366,4367.5,4367.0,0.1218]
[1757509091509,0.79844366,4367.4,4367.1,0.3047]
[1757509091716,0.239,4367.4,4367.1,0.3047]
[1757509092012,3.2078,4367.2,4367.1,0.5093]
[1757509092210,3.4468,4367.2,4367.1,0.5093]
[1757509093515,3.4468,4367.2,4367.1,0.708]
[1757509096513,3.4468,4367.2,4367.1,0.5093]
[1757509096713,3.2078,4367.2,4367.1,0.5093]
[1757509096920,3.4468,4367.2,4367.1,0.5093]
[1757509097611,3.4468,4367.2,4367.1,0.3047]
[1757509099815,3.4468,4367.2,4367.1,0.5202]
[1757509100115,3.4468,4367.2,4367.1,0.7315]
[1757509102614,3.4468,4367.2,4367.1,0.3047]
[1757509103319,3.4468,4367.2,4367.1,0.5202]
[1757509104120,3.4468,4367.2,4367.1,0.7315]
[1757509106320,3.2078,4367.2,4367.1,0.7315]
[1757509106622,3.4468,4367.2,4367.1,0.7315]
[1757509109524,3.2078,4367.2,4367.1,0.7315]
[1757509109722,3.4468,4367.2,4367.1,0.7315]
[1757509111321,32.98,4368.6,4367.1,0.7315]
[1757509111322,3.2078,4367.8,4367.1,0.7315]
[1757509111524,3.2078,4367.8,4367.6,0.7348]
[1757509111525,0.239,4367.7,4367.6,0.7348]
[1757509112224,0.239,4367.7,4367.6,0.5235]
[1757509112421,0.239,4367.7,4367.6,0.308]
[1757509113022,0.239,4367.7,4367.5,0.119]
[1757509113227,0.239,4367.7,4367.5,0.427]
[1757509113820,0.239,4367.7,4367.6,0.308]
[1757509116223,0.239,4367.7,4367.6,0.5235]
[1757509116626,0.239,4367.7,4367.6,0.308]
[1757509117222,0.79757321,4367.7,4367.6,0.308]
[1757509117420,0.79757321,4367.7,4367.6,0.5235]
[1757509117627,0.55857321,4367.7,4367.6,0.5235]
[1757509117822,0.79757321,4367.7,4367.6,0.5235]
[1757509121316,0.79757321,4367.7,4367.6,0.308]
[1757509122820,0.79757321,4367.7,4367.6,0.5235]
[1757509123020,0.79757321,4367.7,4367.6,0.7348]
[1757509125525,0.79757321,4367.7,4367.6,0.308]
[1757509125725,0.79757321,4367.7,4367.6,0.5091]
[1757509126132,0.79757321,4367.7,4367.6,0.308]
[1757509127231,0.79757321,4367.7,4367.6,0.5091]
[1757509127625,0.79757321,4367.7,4367.6,0.7144]
[1757509129335,0.55857321,4367.7,4367.6,0.7144]
[1757509129834,0.239,4367.7,4367.6,0.7144]
[1757509131232,0.79850332,4367.7,4367.6,0.7144]
[1757509133829,0.238,4367.7,4367.6,0.4064]
[1757509134133,3.2078,4368.3,4367.7,0.93545]
[1757509134339,0.5594389,4368.2,4368.1,0.5054]
[1757509134538,0.238,4368.3,4368.1,0.4064]
[1757509134839,0.238,4368.3,4368.2,0.7065]
[1757509135235,0.7508,4368.3,4368.2,0.7065]
[1757509135538,0.9636,4368.3,4368.2,0.7065]
[1757509136535,0.7508,4368.3,4368.2,0.7065]
[1757509136736,0.238,4368.3,4368.2,0.7065]
[1757509137334,0.3052,4368.6,4368.2,0.4064]
[1757509137536,1.30971504,4368.5,4368.4,0.7065]
[1757509138433,0.238,4368.5,4368.4,0.7065]
[1757509138634,0.9636,4368.5,4368.4,0.7065]
[1757509141136,1.0839,4368.5,4368.4,0.7065]
[1757509143241,0.9636,4368.5,4368.4,0.7065]
[1757509143634,0.7256,4368.5,4368.4,0.7065]
[1757509143836,0.9636,4368.5,4368.4,0.7065]
[1757509144534,0.5128,4368.8,4368.7,0.7065]
[1757509144731,3.2078,4368.9,4368.5,0.121]
[1757509144732,3.2078,4368.9,4368.8,0.7065]
[1757509144945,3.4458,4368.9,4368.8,0.7065]
[1757509145140,3.6534,4368.9,4368.8,0.7065]
[1757509145336,0.4456,4368.9,4368.8,0.7065]
[1757509145538,0.7508,4368.9,4368.8,0.7065]
[1757509145737,0.5128,4368.9,4368.8,0.7065]
[1757509145946,0.7508,4368.9,4368.8,0.7065]
[1757509148442,0.9636,4368.9,4368.8,0.7065]
[1757509148636,0.7256,4368.9,4368.8,0.7065]
[1757509148837,0.9636,4368.9,4368.8,0.7065]
[1757509150444,0.238,4368.9,4368.8,0.7065]
[1757509150644,0.7508,4368.9,4368.8,0.7065]
[1757509152245,3.2425,4370.0,4368.9,0.3001]
[1757509152448,0.7256,4369.9,4369.8,0.7065]
[1757509156937,0.7256,4369.9,4369.8,0.2011]
[1757509157142,0.7256,4369.9,4369.8,0.4977]
[1757509158554,0.3145,4369.3,4368.7,0.2966]
[1757509158854,0.2004,4368.8,4368.7,0.6943]
[1757509159153,0.3145,4369.0,4368.7,0.6943]
[1757509159346,0.2004,4368.9,4368.8,0.6943]
[1757509159540,3.2425,4370.0,4369.0,0.1235]
[1757509159746,0.9588,4369.9,4369.8,0.2004]
[1757509161150,0.4063,4369.3,4369.2,0.497]
[1757509161350,0.7208,4369.3,4369.2,0.6943]
[1757509161948,0.4063,4369.9,4369.8,0.2004]
[1757509162250,0.6443,4369.9,4369.8,0.2004]
[1757509162451,0.9588,4369.9,4369.8,0.497]
[1757509162751,0.2004,4369.3,4369.2,0.6943]
[1757509163452,0.3145,4369.5,4369.2,0.3977]
[1757509163653,0.238,4369.7,4369.3,0.3977]
[1757509163950,0.5149,4369.6,4369.5,0.8178]
[1757509164252,0.2004,4369.6,4369.5,0.8178]
[1757509164553,0.5149,4369.6,4369.5,0.8178]
[1757509164749,0.5149,4369.6,4369.5,0.497]
[1757509164750,0.7208,4369.6,4369.5,0.497]
[1757509165351,0.7208,4369.6,4369.5,0.6943]
[1757509170052,0.2004,4369.6,4369.5,0.8178]
[1757509170954,0.5149,4369.6,4369.5,0.8178]
[1757509171860,0.238,4369.7,4369.5,0.93312]
[1757509172155,0.238,4369.7,4369.6,1.10621]
[1757509172345,0.7529,4369.7,4369.6,0.6943]
[1757509172744,0.5149,4369.7,4369.6,1.10621]
[1757509173045,0.2004,4369.8,4369.7,0.2966]
[1757509173248,0.5149,4369.8,4369.7,0.6943]
[1757509173551,0.7208,4369.8,4369.7,1.1062]
[1757509173855,0.2004,4369.8,4369.7,1.1062]
[1757509174063,0.2004,4369.8,4369.7,0.6943]
[1757509174256,0.5149,4369.8,4369.7,0.6943]
[1757509174455,0.3145,4370.4,4369.7,0.3977]
[1757509174758,0.3145,4370.2,4370.1,0.3977]
[1757509174957,0.7208,4370.2,4370.1,0.6943]
[1757509177753,0.5149,4370.2,4370.1,0.6943]
[1757509177960,0.2004,4370.2,4370.1,0.6943]
[1757509178351,0.5149,4370.2,4370.1,0.6943]
[1757509182660,0.2004,4370.2,4370.1,1.10616]
[1757509182864,0.3145,4370.5,4370.2,0.2966]
[1757509183162,0.5149,4370.5,4370.4,0.6943]
[1757509183364,1.2803968,4370.5,4370.4,0.6943]
[1757509183863,3.2078,4370.8,4370.5,0.2919]
[1757509184062,3.2078,4370.8,4370.6,0.7075]
[1757509184063,0.77108007,4370.7,4370.6,0.7075]
[1757509184258,0.7185,4370.7,4370.6,0.7075]
[1757509184566,3.2078,4370.8,4370.7,0.2919]
[1757509184765,3.5171,4371.4,4371.3,0.41175]
[1757509185059,0.2115,4371.3,4370.7,0.237]
[1757509185261,0.1261,4372.0,4371.4,0.4156]
[1757509185465,0.1261,4372.0,4371.3,3.9153]
[1757509185661,0.2115,4371.4,4371.3,3.6234]
[1757509186158,0.2115,4371.4,4371.3,3.9153]
[1757509186362,0.4092,4371.4,4371.3,3.6234]
[1757509186566,0.4092,4371.4,4371.3,3.4135]
[1757509186764,0.4092,4371.4,4371.3,3.2078]
[1757509187066,0.4092,4371.4,4370.8,3.2078]
[1757509187259,0.4092,4370.9,4370.8,3.4135]
[1757509187462,3.2078,4371.7,4371.0,0.1244]
[1757509187664,0.2407,4371.7,4371.0,0.1244]
[1757509187857,0.2115,4371.2,4371.1,0.7075]
[1757509188170,0.4092,4371.2,4371.1,0.7075]
[1757509188868,0.2115,4371.6,4371.5,0.6262]
[1757509189161,0.76747335,4371.6,4371.5,0.8319]
[1757509189355,0.55597335,4371.6,4371.5,0.8319]
[1757509189755,0.237,4372.0,4371.6,0.2919]
[1757509189964,0.2115,4372.0,4371.9,0.7075]
[1757509190159,0.2115,4372.0,4371.5,0.1244]
[1757509190160,0.4092,4372.3,4372.2,0.7075]
[1757509190366,0.6499,4372.3,4372.2,0.2919]
[1757509190667,0.6499,4372.3,4372.2,0.4976]
[1757509191369,0.4485,4372.3,4372.2,0.7075]
[1757509191568,0.2115,4372.3,4372.2,0.7075]
[1757509191871,0.4485,4372.4,4372.3,0.2919]
[1757509192060,0.2115,4372.4,4372.3,0.88009988]
[1757509192465,0.4092,4372.4,4372.3,0.88009988]
[1757509192667,0.2115,4372.4,4372.3,0.88009988]
[1757509193662,0.4485,4372.6,4372.5,0.8319]
[1757509193861,0.6506,4372.6,4372.5,0.79459988]
[1757509194063,1.20759596,4372.6,4372.5,0.79459988]
[1757509194269,1.20759596,4372.6,4372.5,0.79446101]
[1757509194857,0.96619596,4372.6,4372.5,0.79446101]
[1757509195060,0.55699596,4372.6,4372.5,1.00436101]
[1757509195264,0.237,4372.7,4372.5,0.71246101]
[1757509195457,0.4485,4372.7,4372.6,0.87996101]
[1757509195668,3.2078,4372.9,4372.8,0.4156]
[1757509195864,3.2078,4372.9,4372.8,0.87996101]
[1757509196063,0.237,4373.1,4373.0,0.1244]
[1757509196265,0.4485,4373.1,4373.0,1.00436101]
[1757509196666,32.965,4373.4,4373.1,0.2919]
[1757509196864,0.79352051,4373.3,4373.2,0.87996101]
[1757509197061,0.4485,4373.3,4373.2,0.87996101]
[1757509197367,0.6462,4373.3,4373.2,0.87996101]
[1757509197867,0.4485,4373.3,4373.2,0.87996101]
[1757509198066,32.965,4373.4,4373.3,0.2919]
[1757509198263,33.8526,4373.4,4373.3,0.46436101]
[1757509198870,33.6112,4373.4,4373.3,0.67006101]
[1757509199169,33.3742,4373.4,4373.3,0.67006101]
[1757509199375,33.6112,4373.4,4373.3,0.87996101]
[1757509200267,33.8526,4373.4,4372.5,0.4163]
[1757509200461,0.2892,4372.7,4372.6,0.17221289]
[1757509200666,1.09061127,4372.7,4372.6,0.2919]
[1757509201163,1.02161127,4372.7,4372.6,0.7075]
[1757509201370,0.5262,4372.7,4372.5,0.1244]
[1757509201568,0.2202,4372.2,4372.1,0.4976]
[1757509202362,0.2202,4371.8,4371.5,0.4163]
[1757509202566,3.2078,4371.6,4371.5,0.8319]
[1757509202767,0.237,4371.8,4371.7,0.7075]
[1757509203073,0.5179,4372.6,4372.5,0.3933]
[1757509203265,0.5179,4372.6,4372.5,0.69931918]
[1757509203465,1.31962334,4372.6,4372.5,0.69931918]
[1757509203660,4.29042334,4372.6,4372.5,0.69931918]
[1757509203861,4.52742334,4372.6,4372.5,0.82371918]
[1757509204366,18.4,4373.3,4373.0,0.1244]
[1757509204367,3.2078,4373.1,4373.0,0.1244]
[1757509204562,4.71653691,4373.1,4373.0,0.30601918]
[1757509204764,4.47953691,4373.1,4373.0,0.80361918]
[1757509204959,4.71653691,4373.1,4373.0,0.00831918]
[1757509205164,8.71653691,4373.1,4373.0,1.918e-05]
[1757509205567,8.71653691,4373.1,4372.3,0.2919]
[1757509205772,3.2078,4372.4,4372.1,0.2919]
[1757509205967,0.237,4372.3,4372.2,0.7075]
[1757509206167,0.2287,4373.1,4372.3,0.2919]
[1757509206168,0.3093,4373.1,4372.3,0.2919]
[1757509206367,0.5208,4372.9,4372.3,0.22869]
[1757509206668,0.5208,4372.9,4372.3,3.2078]
[1757509206669,0.4092,4372.9,4372.3,3.2078]
[1757509206881,0.5208,4372.4,4372.3,3.2078]
[1757509207068,0.3093,4372.4,4372.3,3.49008336]
[1757509207269,0.3376,4373.0,4372.3,7.49008336]
[1757509207474,0.5353,4373.0,4372.9,3.2078]
[1757509207670,0.3376,4373.0,4372.9,3.49008336]
[1757509207874,0.1261,4373.0,4372.9,3.49008336]
[1757509209064,0.1261,4373.5,4372.9,7.49008336]
[1757509209265,0.4354,4373.5,4373.4,3.2078]
[1757509209473,0.3376,4374.0,4373.4,7.49008336]
[1757509209667,0.6469,4374.0,4373.9,3.2078]
[1757509209867,0.6469,4374.0,4373.9,3.49008336]
[1757509210467,0.4354,4374.0,4373.9,3.49008336]
[1757509210866,0.4354,4374.0,4373.9,7.49008336]
[1757509211267,0.8446,4374.0,4373.9,0.28228336]
[1757509211675,1.40081224,4374.0,4373.9,0.28228336]
[1757509211866,0.8446,4374.0,4373.9,0.28228336]
[1757509212067,0.8446,4374.0,4373.9,3.49008336]
[1757509212572,1.40091644,4374.0,4373.2,3.2078]
[1757509212778,0.4092,4373.3,4373.2,3.4135]
[1757509212982,0.3093,4373.4,4373.3,0.7075]
[1757509213175,0.3093,4374.9,4373.4,0.2919]
[1757509213472,0.3376,4374.0,4373.9,3.6234]
[1757509213671,0.8446,4374.0,4373.9,3.4135]
[1757509214175,0.8446,4374.0,4373.9,3.6234]
[1757509214871,0.8303,4374.5,4374.4,0.2315]
[1757509215072,1.38685863,4374.5,4374.4,0.2315]
[1757509215374,1.14785863,4374.5,4374.4,0.4573]
[1757509215576,1.49205863,4374.5,4374.4,0.4573]
[1757509215871,0.3442,4374.4,4373.9,3.2078]
[1757509216076,0.3442,4374.2,4373.9,3.6651]
[1757509216273,0.8094,4374.1,4374.0,0.2315]
[1757509216472,0.8094,4374.1,4374.0,0.4573]
[1757509216976,0.5806,4374.1,4374.0,0.8034]
[1757509217176,3.2078,4375.2,4374.0,0.8034]
[1757509217375,0.2286,4374.4,4374.3,0.4573]
[1757509217577,0.2286,4374.4,4374.3,4.0112]
[1757509218077,0.2286,4374.4,4374.3,8.0112]
[1757509218282,0.6938,4374.4,4374.3,3.6651]
[1757509218475,1.038,4374.4,4374.3,3.4393]
[1757509218677,0.239,4374.7,4374.3,3.4393]
[1757509218678,0.239,4374.9,4374.3,4.0112]
[1757509218878,0.5806,4374.7,4374.6,0.8034]
[1757509219076,0.8094,4374.7,4374.6,0.8034]
[1757509219274,0.5806,4374.7,4374.6,0.8034]
[1757509219773,1.7067,4375.0,4374.9,0.8034]
[1757509219977,2.49165005,4375.0,4374.9,0.2315]
[1757509220472,1.5806,4375.0,4374.9,0.8034]
[1757509220678,1.9461,4375.0,4374.9,0.4573]
[1757509220977,1.5806,4375.0,4374.9,0.8034]